bitfinex-derivatives/quotes_BTCF0:USTF0_20240903
["timestamp","ask_amount","ask_price","bid_price","bid_amount"]
[1725343877967,0.65681419,59018.0,59017.0,0.00225422]
[1725343878165,0.572972,59018.0,59017.0,0.00225422]
[1725343878971,0.5890558,59018.0,59017.0,0.07002722]
[1725343879172,0.58905999,59018.0,59017.0,0.07002722]
[1725343879575,0.58905999,59018.0,59017.0,0.07362515]
[1725343879864,0.53266906,59018.0,59017.0,0.00225422]
[1725343880168,0.60044106,59018.0,59017.0,0.00225422]
[1725343880367,0.70103413,59018.0,59017.0,0.00225422]
[1725343880568,0.60044106,59018.0,59017.0,0.00225422]
[1725343880966,0.67466279,59018.0,59017.0,0.00225422]
[1725343882072,0.90466279,59018.0,59017.0,0.00225422]
[1725343882459,1.03910338,59018.0,59017.0,0.00225422]
[1725343882857,0.90466279,59018.0,59017.0,0.00225422]
[1725343883264,1.12417193,59018.0,59017.0,0.0020288]
[1725343883687,0.95667044,59018.0,59017.0,0.0020288]
[1725343883968,1.12452764,59018.0,59017.0,0.0020288]
[1725343884466,0.95667328,59018.0,59017.0,0.0020288]
[1725343885776,1.12452764,59018.0,59017.0,0.0020288]
[1725343886271,0.95667328,59018.0,59017.0,0.0020288]
[1725343887873,0.86317311,59018.0,59017.0,0.0020288]
[1725343888175,0.9807421,59018.0,59017.0,0.0020288]
[1725343888583,0.86317311,59018.0,59017.0,0.0020288]
[1725343888776,0.63317311,59018.0,59017.0,0.0020288]
[1725343888971,0.67466374,59018.0,59017.0,0.0020288]
[1725343889484,0.80901579,59018.0,59017.0,0.0587288]
[1725343891475,1.03901579,59018.0,59017.0,0.0587288]
[1725343891779,1.03901579,59018.0,59017.0,0.0020288]
[1725343892875,0.67821579,59018.0,59017.0,0.0020288]
[1725343893075,1.03901579,59018.0,59017.0,0.0020288]
[1725343895877,1.03901579,59018.0,59013.0,0.067778]
[1725343895878,0.067775,59016.0,59013.0,0.06247523]
[1725343896078,0.16785436,59014.0,59013.0,0.06247523]
[1725343896280,0.31572386,59014.0,59013.0,0.06247523]
[1725343896475,0.27409061,59014.0,59013.0,0.06247523]
[1725343897183,0.27409061,59014.0,59012.0,0.00350891]
[1725343897384,0.27409061,59014.0,59011.0,0.23]
[1725343897385,0.30526606,59013.0,59011.0,0.23]
[1725343897689,0.15369061,59012.0,59009.0,0.067782]
[1725343897990,0.0004,59010.0,59009.0,0.07142455]
[1725343898181,0.21208536,59010.0,59009.0,0.07142455]
[1725343899783,0.21208536,59010.0,59009.0,0.07342455]
[1725343900481,0.31373741,59010.0,59009.0,0.07342455]
[1725343900686,0.34646423,59010.0,59009.0,0.07342455]
[1725343901091,0.21208536,59010.0,59009.0,0.07342455]
[1725343901386,0.27227533,59010.0,59009.0,0.07342455]
[1725343901593,0.34649128,59010.0,59009.0,0.07342455]
[1725343901788,0.23649128,59010.0,59009.0,0.07342455]
[1725343902883,0.12868016,59010.0,59009.0,0.07342455]
[1725343903395,0.23868074,59010.0,59009.0,0.07342455]
[1725343903993,0.23868074,59010.0,59009.0,0.16342455]
[1725343904687,0.13787008,59010.0,59009.0,0.16342455]
[1725343905390,0.23869237,59010.0,59009.0,0.16342455]
[1725343908085,0.13787008,59010.0,59009.0,0.16342455]
[1725343908285,0.13787009,59010.0,59009.0,0.16342455]
[1725343910989,0.28820991,59010.0,59009.0,0.16342455]
[1725343912801,0.21208719,59010.0,59009.0,0.16342455]
[1725343913400,0.21208705,59010.0,59009.0,0.16342455]
[1725343915901,0.28829739,59010.0,59009.0,0.16342455]
[1725343916398,0.28829739,59010.0,59009.0,0.67182455]
[1725343918010,0.23875277,59010.0,59009.0,1.27182455]
[1725343918308,0.13786995,59010.0,59009.0,1.27182455]
[1725343918508,0.13786995,59010.0,59009.0,0.67182455]
[1725343919196,0.02786995,59010.0,59009.0,0.67182455]
[1725343919904,0.02786995,59010.0,59009.0,1.27182455]
[1725343920298,0.02786995,59010.0,59009.0,0.58182455]
[1725343920604,0.02786995,59010.0,59009.0,0.67182455]
[1725343921406,0.02786995,59010.0,59009.0,1.27182455]
[1725343921903,0.02786995,59010.0,59009.0,0.00564255]
[1725343922108,0.14786995,59010.0,59009.0,0.00564255]
[1725343922408,0.20906995,59010.0,59009.0,0.00564255]
[1725343923607,0.30958071,59010.0,59009.0,0.00564255]
[1725343926410,0.30958238,59010.0,59009.0,0.00564255]
[1725343926810,0.39958238,59010.0,59009.0,0.00564255]
[1725343928003,0.18060138,59010.0,59009.0,0.09564255]
[1725343928198,0.14787181,59010.0,59009.0,0.09564255]
[1725343928406,0.14787181,59010.0,59009.0,0.16342455]
[1725343928407,0.24870283,59010.0,59009.0,0.16342455]
[1725343928608,0.14787181,59010.0,59009.0,0.16342455]
[1725343929200,0.14787181,59010.0,59009.0,0.28252455]
[1725343929201,0.08443135,59010.0,59009.0,0.28252455]
[1725343929911,0.0004,59010.0,59009.0,1.39092455]
[1725343930308,0.0004,59010.0,59009.0,0.79092455]
[1725343930808,0.0004,59010.0,59009.0,0.70092455]
[1725343931009,0.1104,59010.0,59009.0,0.16342455]
[1725343931214,0.1104,59010.0,59009.0,0.21424445]
[1725343931405,0.13786995,59010.0,59009.0,0.16342455]
[1725343931810,0.13786995,59010.0,59009.0,0.09564255]
[1725343932611,0.13786995,59010.0,59009.0,0.14646245]
[1725343933012,0.13786995,59010.0,59009.0,0.09564255]
[1725343935211,0.13786995,59010.0,59009.0,0.00564255]
[1725343935419,0.13786995,59010.0,59009.0,0.09564255]
[1725343938614,0.17059858,59010.0,59009.0,0.09564255]
[1725343940518,0.13786995,59010.0,59009.0,0.09564255]
[1725343940716,0.13787102,59010.0,59009.0,0.09564255]
[1725343943121,0.20565202,59010.0,59009.0,0.00564255]
[1725343943326,0.26925202,59010.0,59009.0,0.00564255]
[1725343943738,0.33703302,59010.0,59009.0,0.002]
[1725343944027,0.43786825,59010.0,59009.0,0.002]
[1725343944420,0.33703302,59010.0,59009.0,0.002]
[1725343944624,0.43784321,59010.0,59009.0,0.002]
[1725343944824,0.52784321,59010.0,59009.0,0.002]
[1725343945215,0.43784321,59010.0,59009.0,0.002]
[1725343945727,0.26925492,59010.0,59009.0,0.092]
[1725343945918,0.26925492,59010.0,59009.0,0.232]
[1725343946119,0.20565492,59010.0,59009.0,0.232]
[1725343947626,0.56645492,59010.0,59009.0,0.232]
[1725343948018,0.59918447,59010.0,59009.0,0.232]
[1725343949326,0.59918447,59010.0,59009.0,0.002]
[1725343949627,0.59918482,59010.0,59009.0,0.002]
[1725343952328,0.538981,59010.0,59009.0,0.002]
[1725343952929,0.178181,59010.0,59009.0,0.002]
[1725343953133,0.768981,59010.0,59009.0,0.002]
[1725343954823,0.836762,59010.0,59009.0,0.002]
[1725343955027,0.475962,59010.0,59009.0,0.002]
[1725343955225,1.197562,59010.0,59009.0,0.002]
[1725343956631,1.29927258,59010.0,59009.0,0.002]
[1725343957328,0.067794,58999.0,58998.0,0.0039]
[1725343957527,0.067796,58997.0,58996.0,0.0018]
[1725343958830,0.054796,58997.0,58996.0,0.0018]
[1725343959432,0.174796,58997.0,58996.0,0.0018]
[1725343959742,0.174796,58997.0,58996.0,0.0158]
[1725343959743,0.175796,58997.0,58996.0,0.0158]
[1725343960036,0.176796,58997.0,58996.0,0.0298]
[1725343961747,0.20427625,58997.0,58996.0,0.0298]
[1725343962830,0.176796,58997.0,58996.0,0.0298]
[1725343963242,0.2042761,58997.0,58996.0,0.0298]
[1725343963535,0.176796,58997.0,58996.0,0.0298]
[1725343963849,0.26054284,58997.0,58996.0,0.0298]
[1725343964638,0.62134284,58997.0,58996.0,0.0298]
[1725343964838,0.26054284,58997.0,58996.0,0.0298]
[1725343965038,0.62134284,58997.0,58996.0,0.0298]
[1725343967046,0.4828,58997.0,58996.0,0.0298]
[1725343967253,0.002,58997.0,58996.0,0.097597]
[1725343967743,0.05225725,58997.0,58996.0,0.097597]
[1725343969351,0.05225725,58997.0,58996.0,0.327597]
[1725343969543,0.05227128,58997.0,58996.0,1.436117]
[1725343969746,0.002,58997.0,58996.0,1.436117]
[1725343970857,0.08574684,58997.0,58996.0,1.436117]
[1725343972154,0.08574684,58997.0,58996.0,0.836117]
[1725343972556,0.08583173,58997.0,58996.0,1.436117]
[1725343973244,0.002,58997.0,58996.0,1.436117]
[1725343975151,0.02947441,58997.0,58996.0,1.436117]
[1725343976453,0.02947441,58997.0,58996.0,0.836117]
[1725343977962,0.002,58997.0,58996.0,0.836117]
[1725343980053,0.002,58997.0,58996.0,0.0298]
[1725343980252,0.4728,58997.0,58996.0,0.0298]
[1725343981161,0.112,58997.0,58996.0,0.0298]
[1725343981657,0.19586023,58997.0,58996.0,0.0298]
[1725343981962,0.179796,58997.0,58996.0,0.0298]
[1725343982356,0.26365623,58997.0,58996.0,0.0298]
[1725343982762,0.179796,58997.0,58996.0,0.0298]
[1725343984456,0.112,58997.0,58996.0,0.0298]
[1725343984657,0.002,58997.0,58996.0,0.0298]
[1725343986163,0.02947637,58997.0,58996.0,0.0298]
[1725343986363,0.002,58997.0,58996.0,0.0298]
[1725343986862,0.069796,58997.0,58996.0,0.0298]
[1725343987071,0.09727252,58997.0,58996.0,0.0298]
[1725343987570,0.14727252,58997.0,58996.0,0.0298]
[1725343987867,0.24780526,58997.0,58996.0,0.0298]
[1725343992371,0.14727398,58997.0,58996.0,0.0298]
[1725343992972,0.119796,58997.0,58996.0,0.0298]
[1725343995867,0.20371715,58997.0,58996.0,0.0298]
[1725343997280,0.119796,58997.0,58996.0,0.0298]
[1725343997579,0.14727414,58997.0,58996.0,0.0298]
[1725343997974,0.147274,58997.0,58996.0,0.0298]
[1725344000968,0.18001126,58997.0,58996.0,0.0298]
[1725344001174,0.29729775,58997.0,58996.0,0.0298]
[1725344003375,0.22151384,58997.0,58996.0,0.0298]
[1725344003773,0.18001126,58997.0,58996.0,0.0298]
[1725344004177,0.2215137,58997.0,58996.0,0.0298]
[1725344004479,0.22151358,58997.0,58996.0,0.0298]
[1725344004683,0.2975547,58997.0,58996.0,0.0298]
[1725344004980,0.18001126,58997.0,58996.0,0.0298]
[1725344005179,0.22151305,58997.0,58996.0,0.0298]
[1725344007479,0.22151757,58997.0,58996.0,0.0298]
[1725344008084,0.18001376,58997.0,58996.0,0.0298]
[1725344009179,0.17901376,58997.0,58996.0,0.0198]
[1725344010392,0.17801376,58997.0,58996.0,0.0108]
[1725344011970,0.17801358,58997.0,58996.0,0.0108]
[1725344012573,0.17801375,58997.0,58996.0,0.0108]
[1725344014999,0.53881375,58997.0,58996.0,0.0108]
[1725344017389,0.478596,58997.0,58996.0,0.0108]
[1725344017690,0.53881347,58997.0,58996.0,0.0108]
[1725344021390,0.38827915,58997.0,58996.0,0.0108]
[1725344021594,0.4210158,58997.0,58996.0,0.0108]
[1725344022794,0.38827915,58997.0,58996.0,0.0108]
[1725344022997,0.46251614,58997.0,58996.0,0.0108]
[1725344024187,0.53867804,58997.0,58996.0,0.0108]
[1725344024381,0.42101529,58997.0,58996.0,0.078597]
[1725344024691,0.06021529,58997.0,58996.0,0.078597]
[1725344024881,0.03273614,58997.0,58996.0,0.078597]
[1725344026295,0.02747564,58997.0,58996.0,0.0108]
[1725344026494,0.02747564,58998.0,58996.0,0.0108]
[1725344026700,0.02747564,58997.0,58996.0,0.0108]
[1725344026998,0.0004,58999.0,58998.0,0.067795]
[1725344027194,0.06060987,58999.0,58998.0,0.067795]
[1725344028796,0.06060987,58999.0,58998.0,0.069795]
[1725344029387,0.06060987,58999.0,58998.0,0.07342886]
[1725344029588,0.06060987,58999.0,58998.0,0.07642886]
[1725344030004,0.06060987,58999.0,58998.0,0.16642886]
[1725344030293,0.02787568,58999.0,58998.0,0.16642886]
[1725344031595,0.03787568,58999.0,58998.0,0.16642886]
[1725344032295,0.03787544,58999.0,58998.0,0.16642886]
[1725344032697,0.09439156,58999.0,58998.0,0.16642886]
[1725344033008,0.0104,58999.0,58998.0,0.16642886]
[1725344033190,0.09438414,58999.0,58998.0,0.16642886]
[1725344034087,0.09438381,58999.0,58998.0,0.16642886]
[1725344036293,0.08438381,58999.0,58998.0,0.16642886]
[1725344040493,0.0004,58999.0,58998.0,0.16642886]
[1725344044901,0.0004,58999.0,58998.0,0.52722886]
[1725344045502,0.02787366,58999.0,58998.0,0.52722886]
[1725344053301,0.0004,58999.0,58998.0,0.52722886]
[1725344056307,0.06761308,58999.0,58998.0,0.52722886]
[1725344056712,0.0004,58999.0,58998.0,0.52722886]
[1725344056915,0.0004,58999.0,58998.0,0.57804876]
[1725344056916,0.06761413,58999.0,58998.0,0.57804876]
[1725344057305,0.06761413,58999.0,58998.0,0.52722886]
[1725344057706,0.06761413,58999.0,58998.0,1.03570886]
[1725344058213,0.0004,58999.0,58998.0,1.03570886]
[1725344059618,0.0004,58999.0,58998.0,1.03610886]
[1725344060110,0.0004,58999.0,58998.0,0.52762886]
[1725344060308,0.027872,58999.0,58998.0,0.52762886]
[1725344061917,0.027872,58999.0,58998.0,0.16682886]
[1725344062114,0.027872,58999.0,58998.0,0.52762886]
[1725344064219,0.027872,58999.0,58998.0,0.43762886]
[1725344064514,0.027872,58999.0,58998.0,0.52762886]
[1725344065225,0.12869619,58999.0,58998.0,0.52762886]
[1725344068329,0.06758987,58999.0,58998.0,0.57843213]
[1725344068525,0.06758987,58999.0,58998.0,0.21763213]
[1725344068934,0.06758987,58999.0,58998.0,0.57843213]
[1725344069133,0.06758987,58999.0,58998.0,0.52762886]
[1725344069539,0.06758987,58999.0,58998.0,0.16682886]
[1725344069732,0.06758987,58999.0,58998.0,0.52762886]
[1725344071333,0.0004,58999.0,58998.0,0.52762886]
[1725344072634,0.0676019,58999.0,58998.0,0.57845218]
[1725344073137,0.0676019,58999.0,58998.0,0.51065718]
[1725344075339,0.02787259,58999.0,58998.0,0.45983386]
[1725344075935,0.0606031,58999.0,58998.0,0.45983386]
[1725344077149,0.06060307,58999.0,58998.0,0.45983386]
[1725344077742,0.02787259,58999.0,58998.0,0.45983386]
[1725344083239,0.0004,58999.0,58998.0,0.45983386]
[1725344084945,0.1204,58999.0,58998.0,0.45983386]
[1725344085147,0.0004,58999.0,58998.0,0.45983386]
[1725344085754,0.0004,58999.0,58998.0,0.51067419]
[1725344086948,0.0004,58999.0,58998.0,0.45983386]
[1725344087747,0.0004,58999.0,58998.0,0.09903386]
[1725344088658,0.068194,58999.0,58998.0,0.09903386]
[1725344088953,0.188194,58999.0,58998.0,0.09903386]
[1725344090344,0.31644716,58999.0,58998.0,0.09903386]
[1725344091060,0.24865316,58999.0,58998.0,0.09903386]
[1725344091357,0.12865316,58999.0,58998.0,0.09903386]
[1725344094359,0.128653,58999.0,58998.0,0.09903386]
[1725344095460,0.11787473,58999.0,58998.0,0.09903386]
[1725344097061,0.21863039,58999.0,58998.0,0.00903386]
[1725344097258,0.21863039,58999.0,58998.0,0.09903386]
[1725344097957,0.11787473,58999.0,58998.0,0.09903386]
[1725344098363,0.0904,58999.0,58998.0,0.09903386]
[1725344099155,0.158194,58999.0,58998.0,0.00903386]
[1725344100248,0.24215723,58999.0,58998.0,0.00903386]
[1725344100453,0.60596918,58999.0,58998.0,0.00903386]
[1725344100652,1.11444918,58999.0,58998.0,0.00903386]
[1725344100860,1.21520506,58999.0,58998.0,0.00903386]
[1725344101255,1.81520506,58999.0,58998.0,0.00903386]
[1725344102555,1.21520506,58999.0,58998.0,0.00903386]
[1725344102861,1.11444918,58999.0,58998.0,0.00903386]
[1725344106960,0.60596918,58999.0,58998.0,0.00903386]
[1725344109563,0.60596918,58999.0,58998.0,0.09903386]
[1725344111271,0.47294806,58999.0,58998.0,0.09903386]
[1725344111460,0.08467288,58999.0,58998.0,0.16682886]
[1725344111768,0.08467288,58999.0,58998.0,0.07682886]
[1725344112062,0.16855004,58999.0,58998.0,0.00903386]
[1725344112264,0.47294972,58999.0,58998.0,0.00903386]
[1725344112669,0.47294963,58999.0,58998.0,0.09903386]
[1725344112867,0.44547288,58999.0,58998.0,0.09903386]
[1725344113268,0.50568521,58999.0,58998.0,0.09903386]
[1725344114868,0.47294968,58999.0,58998.0,0.09903386]
[1725344115059,0.50568465,58999.0,58998.0,0.09903386]
[1725344117477,0.50568417,58999.0,58998.0,0.09903386]
[1725344118465,0.11214921,58999.0,58998.0,0.09903386]
[1725344118668,0.02747633,58999.0,58998.0,0.16682886]
[1725344118874,0.08389563,58999.0,58998.0,0.09903386]
[1725344119071,0.00025422,59002.0,59001.0,0.067792]
[1725344119374,0.00025422,59002.0,59001.0,0.157792]
[1725344119677,0.08289562,59004.0,59003.0,0.067789]
[1725344119878,0.1045605,59009.0,59003.0,0.067789]
[1725344119879,0.08289562,59005.0,59003.0,0.09]
[1725344120179,0.1006605,59010.0,59004.0,0.4512]
[1725344120480,0.06708411,59011.0,59010.0,0.067781]
[1725344120669,0.06708411,59011.0,59010.0,0.068181]
[1725344120869,0.06708411,59012.0,59010.0,0.128381]
[1725344121281,0.06708411,59012.0,59010.0,0.127981]
[1725344122171,0.06733833,59013.0,59010.0,0.127981]
[1725344122478,0.011,59012.0,59010.0,0.128981]
[1725344122782,0.011,59012.0,59010.0,0.13359657]
[1725344122783,0.008,59011.0,59010.0,0.13359657]
[1725344123174,0.05026279,59011.0,59010.0,0.13359657]
[1725344123365,0.05026279,59011.0,59010.0,0.06581557]
[1725344123678,0.019,59012.0,59010.0,0.06581557]
[1725344123679,0.08608411,59012.0,59010.0,0.15581557]
[1725344123874,0.07508411,59012.0,59011.0,0.0004]
[1725344124274,0.06708411,59012.0,59011.0,0.00882625]
[1725344124573,0.01125422,59013.0,59012.0,0.067779]
[1725344124574,0.06733833,59013.0,59012.0,0.067779]
[1725344124783,0.00025422,59013.0,59012.0,0.0004]
[1725344124973,0.06733833,59013.0,59012.0,0.0004]
[1725344125168,0.06724489,59013.0,59012.0,0.0004]
[1725344125484,0.00025422,59013.0,59012.0,0.0004]
[1725344125669,0.00025422,59013.0,59012.0,0.0582]
[1725344127073,0.01325422,59013.0,59012.0,0.0592]
[1725344127276,0.02125422,59013.0,59012.0,0.0602]
[1725344127776,0.02125422,59013.0,59012.0,0.127979]
[1725344129975,0.07146052,59013.0,59012.0,0.127979]
[1725344130481,0.02125422,59013.0,59012.0,0.127979]
[1725344130884,0.00125422,59013.0,59012.0,0.136979]
[1725344131974,1e-08,59013.0,59012.0,0.136979]
[1725344132377,0.00100001,59013.0,59012.0,0.142979]
[1725344133086,0.0502063,59017.0,59012.0,0.142979]
[1725344133087,0.0502063,59017.0,59016.0,0.067774]
[1725344133284,0.0502063,59017.0,59016.0,0.158174]
[1725344133981,0.06699067,59020.0,59016.0,0.0904]
[1725344134177,0.06699067,59020.0,59019.0,0.158171]
[1725344134377,0.0039,59025.0,59024.0,0.067765]
[1725344134577,0.1006605,59028.0,59024.0,0.067765]
[1725344134578,0.1006605,59028.0,59024.0,0.0904]
[1725344134782,0.1006605,59028.0,59027.0,0.158162]
[1725344135071,0.1006605,59028.0,59027.0,0.157762]
[1725344137283,0.1016605,59028.0,59027.0,0.157762]
[1725344139083,0.1016605,59028.0,59027.0,0.067762]
[1725344139482,0.1016605,59028.0,59027.0,0.157762]
[1725344139990,0.001,59028.0,59027.0,0.157762]
[1725344142907,0.001,59028.0,59027.0,0.09]
[1725344143187,0.001,59028.0,59024.0,0.00403413]
[1725344143390,0.001,59028.0,59027.0,0.09]
[1725344144188,0.111,59028.0,59027.0,0.09]
[1725344144388,0.112,59028.0,59027.0,0.09]
[1725344145081,0.11,59028.0,59027.0,0.09]
[1725344145391,0.114,59028.0,59027.0,0.09]
[1725344146387,0.114,59028.0,59027.0,0.089]
[1725344148188,0.114,59028.0,59024.0,0.00403413]
[1725344148387,0.114,59028.0,59027.0,0.09]
[1725344149591,0.19775302,59028.0,59027.0,0.09]
[1725344150388,0.19375302,59028.0,59027.0,0.09]
[1725344150700,0.19575302,59028.0,59027.0,0.09]
[1725344150895,0.1394626,59028.0,59027.0,0.09]
[1725344151401,0.1374626,59028.0,59027.0,0.09]
[1725344151596,0.1424626,59028.0,59027.0,0.09]
[1725344152095,0.1751812,59028.0,59027.0,0.09]
[1725344152392,0.1424626,59028.0,59027.0,0.09]
[1725344153191,0.17518119,59028.0,59027.0,0.09]
[1725344153595,0.1424626,59028.0,59027.0,0.09]
[1725344154207,0.1424626,59028.0,59027.0,0.157762]
[1725344155502,0.17517947,59028.0,59027.0,0.157762]
[1725344157908,0.1424626,59028.0,59027.0,0.157762]
[1725344158311,0.24316776,59028.0,59027.0,0.157762]
[1725344159903,0.24316776,59028.0,59027.0,0.09]
[1725344161011,0.24316776,59028.0,59024.0,0.00403413]
[1725344161206,0.115,59028.0,59027.0,0.09]
[1725344161406,0.14246203,59028.0,59027.0,0.09]
[1725344162807,0.14346203,59028.0,59027.0,0.09]
[1725344163003,0.14046203,59028.0,59027.0,0.09]
[1725344163209,0.17317952,59028.0,59027.0,0.09]
[1725344163418,0.17317952,59028.0,59024.0,0.00403413]
[1725344163720,0.10123942,59025.0,59024.0,0.00403413]
[1725344163911,0.12870145,59025.0,59024.0,0.00403413]
[1725344164304,0.02786203,59025.0,59024.0,0.00403413]
[1725344165119,0.02786203,59025.0,59024.0,0.09603413]
[1725344165910,0.06057959,59025.0,59024.0,0.09603413]
[1725344166218,0.06257959,59025.0,59024.0,0.09603413]
[1725344170710,0.06257928,59025.0,59024.0,0.09603413]
[1725344171622,0.02986172,59025.0,59024.0,0.09603413]
[1725344173016,0.08644764,59025.0,59024.0,0.09603413]
[1725344174320,0.08644764,59025.0,59024.0,0.16379913]
[1725344177319,0.02986169,59025.0,59024.0,0.16379913]
[1725344180111,0.02986169,59025.0,59024.0,0.2146348]
[1725344180510,0.02986168,59025.0,59024.0,0.2146348]
[1725344180910,0.06257919,59025.0,59024.0,0.16379913]
[1725344181706,0.02986168,59025.0,59024.0,0.07379913]
[1725344181906,0.0024,59025.0,59024.0,0.16379913]
[1725344182615,0.03511696,59025.0,59024.0,0.16379913]
[1725344182823,0.06257864,59025.0,59024.0,0.16379913]
[1725344185520,0.06257878,59025.0,59024.0,0.16379913]
[1725344187926,0.0024,59025.0,59024.0,0.16379913]
[1725344188419,0.0024,59025.0,59024.0,0.23158046]
[1725344189422,0.0024,59025.0,59024.0,0.16379913]
[1725344193418,0.0024,59025.0,59024.0,0.07379913]
[1725344193723,0.0024,59025.0,59024.0,0.16379913]
[1725344195222,0.0004,59025.0,59024.0,0.16379913]
[1725344195418,0.0004,59025.0,59024.0,0.16779913]
[1725344195618,0.0004,59025.0,59024.0,0.16579913]
[1725344195816,0.0004,59025.0,59024.0,0.17079913]
[1725344196020,0.0004,59025.0,59024.0,0.16679913]
[1725344196021,0.06763839,59025.0,59024.0,0.16679913]
[1725344197322,0.06763839,59025.0,59024.0,0.16579913]
[1725344199428,0.0004,59025.0,59024.0,0.16579913]
[1725344199629,0.0603,59027.0,59024.0,0.16579913]
[1725344199826,0.3608,59032.0,59026.0,0.068163]
[1725344200134,0.3608,59032.0,59031.0,0.09]
[1725344202434,0.3628,59032.0,59031.0,0.09]
[1725344203137,0.39026022,59032.0,59031.0,0.09]
[1725344204224,0.39326022,59032.0,59031.0,0.09]
[1725344205326,0.38826022,59032.0,59031.0,0.09]
[1725344205525,0.39026022,59032.0,59031.0,0.09]
[1725344206428,0.39026022,59032.0,59031.0,0.092]
[1725344207424,0.39026022,59032.0,59031.0,0.09557973]
[1725344207628,0.39026022,59032.0,59031.0,0.00557973]
[1725344207827,0.39026022,59032.0,59031.0,0.09557973]
[1725344207828,0.45801622,59032.0,59031.0,0.09557973]
[1725344208028,0.4907337,59032.0,59031.0,0.09557973]
[1725344209729,0.45801622,59032.0,59031.0,0.09557973]
[1725344213241,0.09721622,59032.0,59031.0,0.09557973]
[1725344218146,0.1299327,59032.0,59031.0,0.09557973]
[1725344218439,0.17140869,59032.0,59031.0,0.09557973]
[1725344219028,0.09721622,59032.0,59031.0,0.09557973]
[1725344219436,0.09721686,59032.0,59031.0,0.09557973]
[1725344222140,0.02946086,59032.0,59031.0,0.09557973]
[1725344225442,0.06217729,59032.0,59031.0,0.09557973]
[1725344225839,0.02946086,59032.0,59031.0,0.09557973]
[1725344227743,0.02946077,59032.0,59031.0,0.09557973]
[1725344228852,0.10292647,59032.0,59031.0,0.09557973]
[1725344229037,0.13038724,59032.0,59031.0,0.09557973]
[1725344232246,0.02946077,59032.0,59031.0,0.09557973]
[1725344233054,0.06217587,59032.0,59031.0,0.09557973]
[1725344233348,0.11976255,59032.0,59031.0,0.09557973]
[1725344233538,0.06217587,59032.0,59031.0,0.09557973]
[1725344234151,0.11975936,59032.0,59031.0,0.09557973]
[1725344234453,0.06217587,59032.0,59031.0,0.09557973]
[1725344241253,0.02946077,59032.0,59031.0,0.09557973]
[1725344242363,0.002,59032.0,59031.0,0.09557973]
[1725344242755,0.02945903,59032.0,59031.0,0.09557973]
[1725344242954,0.002,59032.0,59031.0,0.09557973]
[1725344246668,0.02945903,59032.0,59031.0,0.09557973]
[1725344246860,0.002,59032.0,59031.0,0.09557973]
[1725344247370,0.08606498,59032.0,59031.0,0.09557973]
[1725344256260,0.02945881,59032.0,59031.0,0.09557973]
[1725344256670,0.0621729,59032.0,59031.0,0.09557973]
[1725344259671,0.0621729,59032.0,59031.0,0.00557973]
[1725344260173,0.0621729,59032.0,59031.0,0.09557973]
[1725344263177,0.02945881,59032.0,59031.0,0.09557973]
[1725344264269,0.02945881,59032.0,59031.0,0.16333673]
[1725344264471,0.08134657,59034.0,59033.0,0.067755]
[1725344264671,0.08134657,59034.0,59033.0,0.158155]
[1725344264882,0.0039,59039.0,59033.0,0.158155]
[1725344265079,0.11,59039.0,59038.0,0.0904]
[1725344265273,0.13745663,59039.0,59038.0,0.0904]
[1725344268086,0.14045663,59039.0,59038.0,0.0914]
[1725344271284,0.17316815,59039.0,59038.0,0.09491043]
[1725344272278,0.17316813,59039.0,59038.0,0.09491043]
[1725344274286,0.23076663,59039.0,59038.0,0.09491043]
[1725344274485,0.17316813,59039.0,59038.0,0.09491043]
[1725344274984,0.21463798,59039.0,59038.0,0.09491043]
[1725344275286,0.17316813,59039.0,59038.0,0.09491043]
[1725344276787,0.21463805,59039.0,59038.0,0.09491043]
[1725344277189,0.21463855,59039.0,59038.0,0.09491043]
[1725344278296,0.24133408,59039.0,59038.0,0.09491043]
[1725344279186,0.14045685,59039.0,59038.0,0.09491043]
[1725344279986,0.24133674,59039.0,59038.0,0.09491043]
[1725344281003,0.24133699,59039.0,59038.0,0.09491043]
[1725344282789,0.1404571,59039.0,59038.0,0.09491043]
[1725344285286,0.24133699,59039.0,59038.0,0.09491043]
[1725344286096,0.1404571,59039.0,59038.0,0.09491043]
[1725344286396,0.24133699,59039.0,59038.0,0.09491043]
[1725344287696,0.1404571,59039.0,59038.0,0.09491043]
[1725344292298,0.1404571,59039.0,59038.0,0.00491043]
[1725344292493,0.1404571,59039.0,59038.0,0.09491043]
[1725344292695,0.30023699,59039.0,59038.0,0.09491043]
[1725344292897,0.2588571,59039.0,59038.0,0.09491043]
[1725344293201,0.2588571,59039.0,59038.0,0.00491043]
[1725344293499,0.4092599,59039.0,59038.0,0.09491043]
[1725344294410,0.2915698,59039.0,59038.0,0.09491043]
[1725344295105,0.40935054,59039.0,59038.0,0.09491043]
[1725344295499,0.40935047,59039.0,59038.0,0.09491043]
[1725344296006,0.29156973,59039.0,59038.0,0.09491043]
[1725344296692,0.33304055,59039.0,59038.0,0.09491043]
[1725344300514,0.33304019,59039.0,59038.0,0.09491043]
[1725344301304,0.25885729,59039.0,59038.0,0.09491043]
[1725344302307,0.14045729,59039.0,59038.0,0.09491043]
[1725344305306,0.113,59039.0,59038.0,0.09491043]
[1725344305512,0.14045711,59039.0,59038.0,0.09491043]
[1725344308321,0.21463896,59039.0,59038.0,0.09491043]
[1725344309408,0.113,59039.0,59038.0,0.09491043]
[1725344309614,0.29093506,59039.0,59038.0,0.09491043]
[1725344310515,0.17016894,59039.0,59038.0,0.09391043]
[1725344310712,0.17016894,59039.0,59038.0,0.09691043]
[1725344311514,0.0039,59043.0,59038.0,0.09691043]
[1725344311718,0.02745581,59042.0,59041.0,0.428546]
[1725344312412,0.02745581,59042.0,59041.0,0.43720873]
[1725344312919,0.10095167,59043.0,59041.0,0.43720873]
[1725344313214,0.3647,59050.0,59042.0,0.0904]
[1725344313215,0.10095167,59044.0,59042.0,0.0904]
[1725344313419,0.10095167,59044.0,59043.0,0.0904]
[1725344313920,0.10095167,59044.0,59043.0,0.158143]
[1725344314324,0.10095167,59045.0,59044.0,0.067742]
[1725344314627,0.10095167,59045.0,59044.0,0.158142]
[1725344314825,0.10095167,59045.0,59044.0,0.068142]
[1725344315014,0.10095167,59045.0,59044.0,0.158142]
[1725344316424,0.0721987,59045.0,59044.0,0.158142]
[1725344316817,0.005,59045.0,59044.0,0.0904]
[1725344317317,0.07219725,59045.0,59044.0,0.0904]
[1725344318314,0.07219725,59045.0,59044.0,0.09388842]
[1725344319210,0.005,59045.0,59044.0,0.09388842]